{"text_format":"3","workbook":"xlsx","n_sheets":2,"sheets":["מעקב אחר אישורי הגעה","סיכום אישורי הגעה"],"not_rendered":{"charts":2,"defined_names":22},"read":"whole","date_system":"1900"}

{"sheet":"מעקב אחר אישורי הגעה","index":0,"n_rows":15,"n_cols":15,"rows_kept":15,"merged":[[0,3,0,4],[0,5,0,7],[1,3,1,14]]}
[{"$nulls":5},"סיכום אישורי הגעה"]
[null,"תאריך החתונה",null,"כלי מעקב אחר הזמנות לחתונה"]
[null,{"$f":"TODAY()+283","v":"2019-06-29"},null,"שם האורח","נשלחה?","אישור הגעה","מס' אנשים","אורח","קירבה","כתובת","עיר","מדינה","מיקוד","טלפון","הדואר האלקטרוני של איש הקשר"]
[null,"ימים שנותרו",null,"שם 1","כן","כן",1,"בן/בת הזוג 1","אח","כתובת","עיר","מדינה","מיקוד","טלפון","someone@example.com"]
[null,{"$f":"DaysRemaining","v":283},null,"שם 2","כן","לא",3,"בן/בת הזוג 1","חבר/ה","כתובת","עיר","מדינה","מיקוד","טלפון","someone@example.com"]
[null,"יגיעו",null,"שם 3","כן","כן",1,"אחר","חבר/ה","כתובת","עיר","מדינה","מיקוד","טלפון","someone@example.com"]
[null,{"$f":"TotalAttending","v":12},null,"שם 4","כן","לא",2,"בן/בת הזוג 2","חבר/ה","כתובת","עיר","מדינה","מיקוד","טלפון","someone@example.com"]
[null,"לא יגיעו",null,"שם 5","כן","כן",2,"בן/בת הזוג 2","חבר/ה","כתובת","עיר","מדינה","מיקוד","טלפון","someone@example.com"]
[null,{"$f":"TotalNotAttending","v":6},null,"שם 6","כן","לא סופי",null,"אחר","חבר/ה","כתובת","עיר","מדינה","מיקוד","טלפון","someone@example.com"]
[null,"לא סופי",null,"שם 7","כן","כן",2,"בן/בת הזוג 2","חבר/ה","כתובת","עיר","מדינה","מיקוד","טלפון","someone@example.com"]
[null,{"$f":"OutstandingRSVP","v":1},null,"שם 8","כן","לא",1,"אחר","חבר/ה","כתובת","עיר","מדינה","מיקוד","טלפון","someone@example.com"]
[{"$nulls":3},"שם 9","כן","כן",4,"בן/בת הזוג 1","חבר/ה","כתובת","עיר","מדינה","מיקוד","טלפון","someone@example.com"]
[{"$nulls":3},"שם 10","כן","כן",2,"בן/בת הזוג 1","חבר/ה","כתובת","עיר","מדינה","מיקוד","טלפון","someone@example.com"]
[{"$nulls":3},"שם 11","כן",null,null,"בן/בת הזוג 2","אח","כתובת","עיר","מדינה","מיקוד","טלפון","someone@example.com"]
[{"$nulls":3},"סך הכל:",{"$f":"COUNTIF('מעקב אחר אישורי הגעה'!$E$4:$E$14,\"כן\")","v":11},{"$f":"COUNTA('מעקב אחר אישורי הגעה'!$F$4:$F$14)","v":10},{"$f":"SUBTOTAL(109,tblInvites[מס'' אנשים])","v":18}]

{"sheet":"סיכום אישורי הגעה","index":1,"n_rows":11,"n_cols":15,"rows_kept":11,"merged":[[0,3,0,4],[0,5,0,8],[1,3,1,11],[2,3,6,3],[2,4,6,4],[7,3,11,3],[7,4,11,4]]}
[{"$nulls":3},"מעקב אחר אישורי הגעה"]
[null,"תאריך החתונה",null,"סיכום אישורי הגעה",{"$nulls":10},"הערות"]
[null,{"$f":"WeddingDate","v":"2019-06-29"},null,"כן","בתא זה מופיע תרשים עמודות מקובץ באשכולות שמציג את סוגי האורחים עבור האורחים שאישרו את הגעתם לאירוע."]
[null,"ימים שנותרו",{"$nulls":3},"אחר",{"$f":"IFERROR(SUMIFS(tblInvites[מס'' אנשים],tblInvites[אורח],\"=אחר\",tblInvites[אישור הגעה],\"כן\"),0)","v":1},{"$f":"tblInvites[[#Totals],[נשלחה?]]","v":11}]
[null,{"$f":"DaysRemaining","v":283},{"$nulls":3},"בן/בת הזוג 2",{"$f":"IFERROR(SUMIFS(tblInvites[מס'' אנשים],tblInvites[אורח],\"=בן/בת הזוג 2\",tblInvites[אישור הגעה],\"כן\"),0)","v":4},{"$f":"tblInvites[[#Totals],[נשלחה?]]","v":11}]
[null,"יגיעו",{"$nulls":3},"בן/בת הזוג 1",{"$f":"IFERROR(SUMIFS(tblInvites[מס'' אנשים],tblInvites[אורח],\"=בן/בת הזוג 1\",tblInvites[אישור הגעה],\"כן\"),0)","v":7},{"$f":"tblInvites[[#Totals],[נשלחה?]]","v":11}]
[null,{"$f":"TotalAttending","v":12}]
[null,"לא יגיעו",null,"לא","בתא זה מופיע תרשים עמודות מקובץ באשכולות שמציג את סוגי האורחים עבור האורחים שהודיעו שלא יגיעו לאירוע."]
[null,{"$f":"TotalNotAttending","v":6},{"$nulls":3},"אחר",{"$f":"IFERROR(SUMIFS(tblInvites[מס'' אנשים],tblInvites[אורח],\"=אחר\",tblInvites[אישור הגעה],\"לא\"),0)","v":1},{"$f":"tblInvites[[#Totals],[נשלחה?]]","v":11}]
[null,"לא סופי",{"$nulls":3},"בן/בת הזוג 2",{"$f":"IFERROR(SUMIFS(tblInvites[מס'' אנשים],tblInvites[אורח],\"=בן/בת הזוג 2\",tblInvites[אישור הגעה],\"לא\"),0)","v":2},{"$f":"tblInvites[[#Totals],[נשלחה?]]","v":11}]
[null,{"$f":"OutstandingRSVP","v":1},{"$nulls":3},"בן/בת הזוג 1",{"$f":"IFERROR(SUMIFS(tblInvites[מס'' אנשים],tblInvites[אורח],\"=בן/בת הזוג 1\",tblInvites[אישור הגעה],\"לא\"),0)","v":3},{"$f":"tblInvites[[#Totals],[נשלחה?]]","v":11}]